bitfinex/quotes_ETHUSD_20260107
["timestamp","ask_amount","ask_price","bid_price","bid_amount"]
[1767784860006,0.03976089,3224.9,3224.5,0.002]
[1767784860708,0.03976089,3224.9,3224.5,0.94609976]
[1767784861012,0.001,3224.9,3224.5,0.94609976]
[1767784861918,0.001,3224.9,3224.5,0.002]
[1767784863122,0.001,3224.9,3224.5,1.00111906]
[1767784863411,0.03976089,3224.9,3224.5,1.00111906]
[1767784864704,0.001,3224.9,3224.5,1.00111906]
[1767784864908,0.03976089,3224.9,3224.5,1.00111906]
[1767784866011,0.001,3224.9,3224.5,1.00111906]
[1767784866210,0.91901231,3225.6,3224.8,0.99911906]
[1767784866403,0.812,3225.5,3224.8,0.99911906]
[1767784870412,0.812,3225.9,3224.8,0.99911906]
[1767784871112,1.76034805,3225.9,3224.8,0.99911906]
[1767784871810,0.94834805,3226.1,3225.2,0.94504664]
[1767784872525,1.02086746,3226.2,3225.2,0.94504664]
[1767784873422,0.001,3225.6,3225.2,0.94504664]
[1767784873631,0.94834805,3226.1,3224.7,0.813]
[1767784873834,0.94834805,3226.1,3224.8,1.1208513]
[1767784874224,0.94834805,3226.1,3225.0,0.94504664]
[1767784875955,0.94834805,3226.1,3224.9,0.813]
[1767784876751,0.94834805,3226.1,3225.0,0.94504664]
[1767784883779,1.02086746,3226.2,3225.0,0.94504664]
[1767784883979,1.96921551,3226.2,3225.2,0.94504664]
[1767784884284,0.94834805,3226.1,3225.1,0.17580466]
[1767784884474,0.94834805,3226.1,3224.9,1.75804664]
[1767784884969,0.94834805,3225.7,3224.9,1.75804664]
[1767784885376,0.001,3225.8,3225.0,0.94504664]
[1767784888793,0.94934805,3225.8,3225.0,0.94504664]
[1767784889388,0.94934805,3225.8,3224.9,0.813]
[1767784889691,0.94934805,3225.8,3225.0,0.59124499]
[1767784890589,0.94934805,3225.8,3225.1,0.94504664]
[1767784891490,0.94934805,3225.8,3225.2,1.75704664]
[1767784891694,0.001,3225.8,3225.3,0.94504664]
[1767784893699,0.001,3225.8,3225.2,0.812]
[1767784894005,0.93133317,3225.8,3225.3,0.17646628]
[1767784895192,0.001,3225.8,3225.3,1.12912909]
[1767784896190,0.001,3225.8,3225.3,0.17646628]
[1767784896497,0.93133317,3225.8,3225.3,0.17646628]
[1767784896699,0.93133317,3225.8,3225.3,0.17846628]
[1767784896903,0.001,3225.8,3225.3,0.17846628]
[1767784897111,0.001,3225.8,3225.4,0.19431291]
[1767784897811,0.001,3225.8,3225.3,0.002]
[1767784899312,0.001,3225.8,3225.3,0.95466281]
[1767784899512,0.93133317,3225.8,3225.0,0.002]
[1767784899691,0.93133317,3225.8,3223.9,3.269]
[1767784899692,1.66768905,3224.3,3224.1,0.002]
[1767784899891,0.93033317,3224.9,3224.1,0.002]
[1767784900202,0.93033317,3224.9,3224.2,0.40025986]
[1767784902111,0.93033317,3225.3,3224.4,0.95266281]
[1767784902311,0.93033317,3225.7,3224.4,0.95266281]
[1767784902615,0.93033317,3225.7,3224.3,3.97859861]
[1767784902616,0.93033317,3225.7,3224.6,0.95266281]
[1767784903484,0.93033317,3225.7,3224.7,0.95266281]
[1767784904122,0.93033317,3225.7,3224.6,0.813]
[1767784904610,0.93033317,3225.7,3224.7,0.95266281]
[1767784907816,0.93033317,3225.7,3224.4,0.90054488]
[1767784908022,0.99006891,3225.5,3224.2,0.90254488]
[1767784908221,0.99006891,3225.4,3224.2,0.90254488]
[1767784909503,0.99006891,3225.4,3225.0,0.002]
[1767784909836,0.99006891,3225.4,3224.6,0.002]
[1767784909837,0.99006891,3225.3,3224.6,0.002]
[1767784914748,0.99006891,3225.1,3224.6,0.002]
[1767784915037,0.99006891,3224.9,3224.2,0.002]
[1767784915340,0.99006891,3224.8,3224.2,0.002]
[1767784917742,0.99006891,3225.0,3224.2,0.90254488]
[1767784921756,0.99006891,3225.0,3224.2,0.002]
[1767784921952,0.99006891,3225.0,3224.2,0.9989993]
[1767784922161,0.99106891,3225.0,3224.2,0.9989993]
[1767784923764,0.99106891,3225.0,3224.2,0.002]
[1767784925163,0.92589156,3224.9,3224.1,0.002]
[1767784925460,0.51246814,3225.0,3224.1,0.002]
[1767784925461,0.92589156,3224.8,3224.1,0.002]
[1767784926031,0.92589156,3224.8,3224.1,0.9989993]
[1767784926341,0.92689156,3225.0,3224.1,0.9989993]
[1767784926533,0.92689156,3225.0,3224.1,1.42419745]
[1767784926932,0.92689156,3225.0,3224.1,0.9989993]
[1767784927159,0.001,3225.0,3224.1,0.9989993]
[1767784927371,0.001,3225.8,3224.9,3.97859861]
[1767784927675,0.92689156,3225.8,3224.9,3.97859861]
[1767784927890,0.92689156,3225.8,3225.0,0.39785986]
[1767784928097,0.92689156,3225.8,3224.8,0.813]
[1767784928698,0.92689156,3225.8,3224.9,0.9969993]
[1767784929997,0.001,3225.8,3224.9,0.96725653]
[1767784932372,0.001,3225.8,3224.1,0.002]
[1767784932373,0.92462022,3225.7,3224.1,0.002]
[1767784932574,0.92462022,3225.6,3224.3,0.99898444]
[1767784932798,0.92462022,3225.6,3224.4,1.18018288]
[1767784933693,0.92462022,3225.4,3224.4,1.18018288]
[1767784936401,0.92462022,3225.4,3224.4,1.99318288]
[1767784936903,0.92462022,3225.4,3224.5,0.99898444]
[1767784940899,0.92462022,3225.4,3224.4,0.99419844]
[1767784940900,0.92462022,3225.4,3224.4,1.18018288]
[1767784941113,0.92462022,3225.2,3224.1,0.002]
[1767784941411,0.92462022,3225.2,3224.1,1.00098444]
[1767784945915,0.92462022,3225.2,3224.4,0.002]
[1767784946319,0.001,3224.9,3224.4,0.002]
[1767784947310,0.001,3224.9,3224.4,1.00098444]
[1767784950253,0.001,3225.5,3224.9,0.99898444]
[1767784950459,0.001,3225.5,3225.0,0.813]
[1767784950766,0.001,3225.5,3225.1,0.18119844]
[1767784950908,0.001,3225.5,3225.1,0.99898444]
[1767784953612,0.001,3225.5,3225.1,0.813]
[1767784955221,0.001,3225.5,3225.1,1.71608997]
[1767784956247,0.001,3225.5,3225.2,0.90308997]
[1767784956450,0.93616219,3226.1,3225.4,0.90308997]
[1767784956742,1.13186516,3226.1,3225.2,0.90308997]
[1767784957109,1.13186516,3226.1,3225.3,0.813]
[1767784959320,0.93616219,3226.1,3225.3,0.813]
[1767784959942,0.001,3225.8,3225.3,0.813]
[1767784960241,0.001,3225.8,3225.1,0.90308997]
[1767784960539,0.001,3225.8,3225.2,0.90308997]
[1767784962249,0.93716219,3225.8,3225.1,0.813]
[1767784962450,0.93716219,3225.8,3225.2,0.171609]
[1767784965253,0.93716219,3225.8,3225.2,3.27213432]
[1767784968167,0.001,3225.8,3225.3,0.90308997]
[1767784968473,0.93716219,3225.8,3225.2,3.27213432]
[1767784968767,0.001,3225.8,3225.3,1.3116034]
[1767784969774,0.001,3225.8,3225.4,3.10039064]
[1767784969953,0.93716219,3225.8,3225.4,3.10039064]
[1767784970570,0.001,3225.8,3225.4,4.00348061]
[1767784972597,0.001,3225.8,3225.5,0.90308997]
[1767784972757,0.001,3225.8,3225.6,0.40034806]
[1767784975891,0.001,3225.8,3225.5,0.90308997]
[1767784976058,0.001,3225.8,3225.3,3.50897251]
[1767784976264,0.93716219,3225.8,3225.3,0.40851343]
[1767784976464,0.93716219,3225.8,3225.2,0.813]
[1767784976992,0.93716219,3225.8,3225.1,4.00369601]
[1767784977291,0.001,3225.8,3225.3,0.90308997]
[1767784982986,0.001,3225.5,3225.3,0.90308997]
[1767784983186,0.001,3225.5,3225.3,1.38476455]
[1767784983396,0.001,3225.8,3225.3,1.38476455]
[1767784986019,0.91926006,3225.8,3225.1,1.79274961]
[1767784986314,0.91926006,3225.8,3225.2,0.93365317]
[1767784993142,0.001,3225.8,3225.2,0.93365317]
[1767784994330,0.94130125,3225.8,3225.1,0.813]
[1767784994706,0.001,3225.5,3225.1,1.74665317]
[1767784994932,0.94130125,3225.8,3225.1,2.23139216]
[1767784996034,0.001,3225.8,3225.2,0.93365317]
[1767784999634,0.001,3225.8,3225.2,4.03422942]
[1767785000708,0.001,3225.8,3225.2,0.93365317]
[1767785001430,0.001,3225.8,3225.2,4.03422867]
[1767785001638,0.001,3225.8,3225.2,4.96527889]
[1767785001839,0.001,3225.8,3225.3,0.93365317]
[1767785002135,3.09976011,3226.1,3225.5,0.93365317]
[1767785006139,3.09976011,3226.1,3225.5,0.93565317]
[1767785006441,0.001,3225.8,3225.5,0.93565317]
[1767785006619,3.09976011,3226.1,3225.5,1.33926459]
[1767785006820,3.09976011,3226.1,3225.5,0.93565317]
[1767785007521,1.96116871,3226.2,3225.5,0.93565317]
[1767785008208,5.06085498,3226.2,3225.5,0.93565317]
[1767785008711,1.96116871,3226.2,3225.5,4.03592315]
[1767785008912,1.96116871,3226.2,3225.6,0.93365317]
[1767785009205,5.06082081,3226.2,3225.6,0.93365317]
[1767785009410,0.94030125,3225.9,3225.5,0.002]
[1767785012316,4.0402221,3225.9,3225.5,0.002]
[1767785012843,0.94193005,3225.8,3225.5,0.002]
[1767785014816,0.94193005,3225.8,3225.5,1e-08]
[1767785016545,4.04196093,3225.8,3225.5,1e-08]
[1767785016844,0.94193005,3225.8,3225.5,1e-08]
[1767785017543,0.94193005,3225.7,3225.5,1e-08]
[1767785018548,4.04177725,3226.0,3225.5,1e-08]
[1767785021154,0.94193005,3226.0,3225.5,1e-08]
[1767785024025,4.04175361,3226.0,3225.5,1e-08]
[1767785024656,0.94193005,3226.0,3225.5,1e-08]
[1767785026370,1.96279751,3226.2,3225.5,1e-08]
[1767785026655,1.96279751,3226.2,3225.5,0.99472545]
[1767785026861,1.02086746,3226.2,3225.6,0.99472544]
[1767785027257,1.96279751,3226.2,3225.6,0.99472544]
[1767785027561,1.02086746,3226.2,3225.6,0.99472544]
[1767785027729,1.02086746,3226.2,3225.7,0.99472544]
[1767785028361,1.02086746,3226.2,3225.7,1.48526368]
[1767785031367,1.02086746,3226.2,3225.7,0.99472544]
[1767785035495,1.02086746,3226.2,3225.5,4.90549192]
[1767785038399,1.02086746,3226.2,3225.5,1.80519993]
[1767785038594,4.12049628,3226.2,3225.5,1.80519993]
[1767785038770,4.12050274,3226.2,3225.5,1.80519993]
[1767785038970,5.06243279,3226.2,3225.5,1.80519993]
[1767785040586,0.93051523,3226.1,3225.5,0.81047449]
[1767785040789,0.93051523,3226.1,3225.5,1e-08]
[1767785041719,0.001,3225.9,3225.5,1e-08]
[1767785041882,0.93051523,3226.1,3225.5,3.10027067]
[1767785042785,0.93051523,3226.1,3225.5,1e-08]
[1767785045628,1.93053372,3226.2,3225.5,0.98441223]
[1767785045813,1.93053372,3226.2,3225.6,0.40847661]
[1767785054027,1.93053372,3226.2,3225.8,0.002]
[1767785054525,0.001,3225.9,3225.8,0.002]
[1767785055524,1.93053372,3226.2,3225.8,0.002]
[1767785056329,1.02086746,3226.2,3225.8,0.98641222]
[1767785058433,1.02086746,3226.2,3225.8,1.43592045]
[1767785060115,1.02086746,3226.2,3225.8,0.98641222]
[1767785063833,1.02086746,3226.2,3225.8,0.002]
[1767785064654,1.02086746,3226.2,3225.8,0.98641222]
[1767785066658,3.0993506,3226.5,3225.9,0.98441222]
[1767785067359,3.09923758,3226.6,3225.9,0.98441222]
[1767785068755,4.00890384,3226.6,3225.9,0.98441222]
[1767785070161,3.09923758,3226.6,3225.9,0.98441222]
[1767785074478,0.96203548,3227.0,3226.0,0.94627839]
[1767785074680,0.96203548,3227.0,3226.2,0.94627839]
[1767785076069,3.09875739,3227.1,3226.2,0.94627839]
[1767785076472,7.15956137,3227.1,3226.2,0.94627839]
[1767785077383,0.96203548,3227.0,3226.2,0.94627839]
[1767785077585,0.96203548,3227.0,3226.3,0.4848364]
[1767785077987,0.96203548,3227.0,3226.3,1.43111479]
[1767785078396,4.06093032,3227.0,3226.3,1.43111479]
[1767785078900,0.001,3226.7,3226.3,1.43111479]
[1767785080672,4.06093032,3227.0,3226.3,1.43111479]
[1767785081196,4.06093032,3227.0,3226.4,0.45307149]
[1767785081596,4.06093032,3227.0,3226.4,1.39934988]
[1767785083001,4.06093032,3227.0,3226.2,0.94627839]
[1767785083709,0.96203548,3226.9,3226.2,0.94627839]
[1767785084201,0.96203548,3226.9,3226.0,4.04605397]
[1767785084406,0.96203548,3226.9,3226.1,4.04597031]
[1767785085200,0.96203548,3226.9,3226.2,0.94627839]
[1767785087794,4.06098933,3226.9,3226.3,0.40459591]
[1767785088691,4.06098933,3226.9,3226.3,1.3508743]
[1767785090823,0.96203548,3226.8,3226.3,0.40459591]
[1767785091008,0.001,3226.7,3226.1,0.94627839]
[1767785091319,0.001,3226.7,3226.2,0.94627839]
[1767785091827,0.96203548,3227.3,3226.4,0.94627839]
[1767785093227,0.96203548,3227.1,3226.4,0.94627839]
[1767785094726,0.96203548,3227.1,3226.1,3.09969198]
[1767785094896,0.96203548,3227.1,3226.2,0.3911692]
[1767785095625,0.96203548,3226.9,3226.2,0.3911692]
[1767785098995,4.0608889,3227.0,3226.3,0.94627839]
[1767785101847,0.90544321,3226.9,3226.2,0.3911692]
[1767785102011,0.90544321,3226.9,3226.1,0.9611141]
[1767785102216,0.90544321,3226.9,3226.2,0.9611141]
[1767785102418,3.09885342,3227.0,3226.2,0.9611141]
[1767785103124,0.90544321,3226.9,3226.2,0.9611141]
[1767785103324,0.90544321,3226.9,3226.6,0.002]
[1767785103524,0.001,3226.7,3226.0,4.06092092]
[1767785104038,0.001,3226.7,3226.3,0.002]
[1767785106039,0.90644321,3226.7,3226.3,0.002]
[1767785106233,0.90644321,3226.7,3225.8,0.002]
[1767785107326,0.90644321,3226.7,3225.8,3.10198024]
[1767785107512,1.34469181,3226.6,3225.8,4.0929944]
[1767785107852,0.94414289,3226.5,3225.8,0.99301416]
[1767785108147,3.0994297,3226.4,3225.8,0.99301416]
[1767785109387,4.04350432,3226.5,3225.8,0.99301416]
[1767785113402,4.04358587,3226.4,3225.8,0.002]
[1767785113611,4.79792359,3226.4,3225.8,0.002]
[1767785113811,0.94414289,3226.3,3225.8,0.002]
[1767785115404,6.95322368,3226.4,3225.8,0.002]
[1767785115576,7.89736657,3226.4,3225.8,0.002]
[1767785116278,0.94414289,3226.3,3225.8,0.002]
[1767785116478,1.73387955,3226.3,3225.8,0.002]
[1767785116719,1.73387955,3226.3,3226.1,0.002]
[1767785117601,3.09962184,3226.2,3226.1,0.002]
[1767785118606,4.04376473,3226.2,3226.1,0.002]
[1767785120419,0.94414289,3226.2,3226.1,0.002]
[1767785120719,1.73753202,3226.2,3226.1,0.002]
[1767785121821,0.79338913,3226.2,3226.1,0.002]
[1767785122017,3.09956872,3226.3,3226.1,0.002]
[1767785126414,3.1004297,3226.4,3226.1,0.002]
[1767785126588,6.19986242,3226.4,3226.1,0.002]
[1767785127804,3.1004297,3226.4,3226.1,0.002]
[1767785129594,6.19986242,3226.4,3226.1,0.002]
[1767785129797,0.71440053,3226.3,3226.1,0.002]
[1767785132498,3.81397326,3226.3,3226.1,0.002]
[1767785133630,0.71440053,3226.3,3226.1,0.002]
[1767785134002,7.24423053,3227.3,3226.1,0.98029565]
[1767785134003,3.09906166,3226.8,3226.1,0.98029565]
[1767785134323,3.09894064,3227.0,3226.2,0.97829565]
[1767785134494,0.94158496,3227.0,3226.2,0.97829565]
[1767785136229,3.09875876,3227.1,3226.3,0.97829565]
[1767785136606,4.04034372,3227.1,3226.3,0.97829565]
[1767785136808,3.09875876,3227.1,3226.3,0.97829565]
[1767785137014,0.94158496,3227.0,3226.3,0.97829565]
[1767785137210,0.94158496,3227.0,3226.4,0.40778871]
[1767785137401,0.94158496,3227.0,3226.3,0.97829565]
[1767785138737,4.04051236,3227.0,3226.3,0.97829565]
[1767785140546,3.09866137,3227.2,3226.3,0.97829565]
[1767785140910,6.19732274,3227.2,3226.3,0.97829565]
[1767785141638,3.09866137,3227.2,3226.3,0.97829565]
[1767785141838,0.001,3226.7,3226.3,0.97829565]
[1767785142052,0.001,3226.7,3226.5,0.97829565]
[1767785142411,0.001,3226.7,3226.5,0.97629566]
[1767785142838,0.001,3226.7,3226.2,0.97829565]
[1767785143022,0.001,3226.7,3226.1,0.002]
[1767785143421,0.001,3226.7,3226.1,0.98029565]
[1767785144428,0.001,3226.7,3226.1,1.38831225]
[1767785145147,0.94258496,3226.7,3226.1,0.4100166]
[1767785145339,0.94258496,3226.7,3226.1,0.002]
[1767785147451,0.94158496,3226.5,3226.1,0.002]
[1767785147633,3.09923758,3226.6,3226.1,0.002]
[1767785148736,0.001,3226.7,3226.1,0.002]
[1767785148934,3.10016222,3226.7,3226.1,0.002]
[1767785149130,4.04174718,3226.7,3226.1,0.002]
[1767785149461,0.001,3226.7,3226.1,0.98029565]
[1767785149617,0.001,3226.7,3226.1,1.38831616]
[1767785149950,0.001,3226.7,3226.2,0.97829565]
[1767785151049,3.09888739,3227.0,3226.5,0.97829565]
[1767785151724,3.09875739,3227.1,3226.5,0.97829565]
[1767785152553,0.94158496,3227.0,3226.1,0.002]
[1767785152754,0.94158496,3226.9,3226.1,0.002]
[1767785153648,0.94158496,3226.9,3226.4,0.002]
[1767785153955,0.94258496,3226.7,3226.4,0.002]
[1767785155029,3.09923758,3226.6,3226.4,0.002]
[1767785155630,3.81332438,3226.6,3226.4,0.002]
[1767785157957,4.75490934,3226.6,3226.4,0.002]
[1767785159559,0.94158496,3226.5,3226.4,0.002]
[1767785161230,4.0409186,3226.5,3226.4,0.002]
[1767785161933,0.7140868,3226.6,3226.4,0.002]
[1767785162138,4.02297325,3227.0,3226.4,0.98905027]
[1767785163058,3.09891983,3227.0,3226.4,0.98905027]
[1767785163568,6.19761106,3227.1,3226.4,0.98905027]
[1767785163743,7.12166448,3227.1,3226.4,0.98905027]
[1767785164368,0.92405342,3227.0,3226.4,0.98905027]
[1767785164582,0.92405342,3227.0,3226.4,0.002]
[1767785165886,0.92405342,3226.8,3226.4,0.002]
[1767785166767,0.001,3226.7,3226.4,0.002]
[1767785168163,3.10014153,3226.7,3226.4,0.002]
[1767785168358,6.91160923,3226.7,3226.4,0.002]
[1767785168761,3.8124677,3226.7,3226.4,0.002]
[1767785170694,0.92405342,3226.6,3226.4,0.002]
[1767785170992,0.92405342,3226.6,3226.1,0.002]
[1767785171990,6.91160923,3226.7,3226.1,0.98905027]
[1767785173066,3.8124677,3226.7,3226.1,0.98905027]
[1767785174471,3.10014153,3226.7,3226.1,0.98905027]
[1767785176708,0.001,3226.7,3226.1,0.98905027]
[1767785179303,0.001,3226.7,3226.4,0.002]
[1767785189110,0.92505342,3226.7,3226.4,0.002]
[1767785189984,0.001,3226.7,3226.4,0.002]
[1767785192207,0.001,3226.7,3226.4,0.91716655]
[1767785199303,0.001,3226.7,3226.4,1.09018321]
[1767785200726,0.001,3226.7,3226.4,4.18960599]
[1767785200891,0.001,3226.7,3226.5,0.91516655]
[1767785202433,0.001,3226.7,3226.6,0.91516655]
[1767785202734,0.95211448,3227.3,3226.5,3.09931936]
[1767785202915,0.95211448,3227.3,3226.6,0.3274336]
[1767785203342,0.95211448,3227.3,3226.7,0.813]
[1767785205000,4.05031037,3227.7,3226.8,0.91516655]
[1767785205220,0.95211448,3227.6,3226.8,0.91516655]
[1767785205435,4.050402,3227.6,3226.9,1.08798321]
[1767785205933,0.95211448,3227.6,3226.9,1.08798321]
[1767785206702,3.09819859,3227.7,3226.9,1.08798321]
[1767785207002,0.95211448,3227.6,3226.9,1.08798321]
[1767785207633,4.05048691,3227.6,3226.9,1.08798321]
[1767785208420,7.14885934,3227.6,3226.9,1.08798321]
[1767785208618,0.95211448,3227.5,3226.4,0.98701666]
[1767785208835,0.95211448,3227.5,3226.4,0.814]
[1767785209728,0.95211448,3227.3,3226.4,0.814]
[1767785209935,0.95211448,3227.3,3226.4,0.002]
[1767785212231,0.95211448,3227.1,3226.4,0.002]
[1767785212425,0.95211448,3226.9,3226.4,0.002]
[1767785213458,3.09904549,3226.8,3226.4,0.002]
[1767785213763,4.05115997,3226.8,3226.4,0.002]
[1767785213944,0.95211448,3226.7,3226.4,0.002]
[1767785215738,4.05126441,3226.7,3226.4,0.002]
[1767785216114,3.09911459,3226.8,3226.4,0.002]
[1767785219943,0.71494372,3227.0,3226.4,0.92736301]
[1767785220146,3.09888613,3227.0,3226.4,0.92736301]
[1767785221524,0.98493909,3226.9,3226.4,0.002]
[1767785221729,0.98493909,3226.9,3226.0,0.002]
[1767785221730,0.92872143,3226.8,3226.0,0.002]
[1767785221927,3.97770985,3226.9,3225.5,1e-08]
[1767785221928,0.92872143,3226.6,3225.5,1e-08]
[1767785222243,0.92872143,3226.4,3225.2,0.3819614]
[1767785222414,3.97770985,3226.5,3225.1,0.002]
[1767785222415,0.92872143,3226.2,3225.1,0.002]
[1767785222724,0.49064313,3226.3,3224.6,0.3819614]
[1767785222725,0.92872143,3225.9,3224.6,0.3819614]
[1767785222926,1.30264313,3226.3,3224.4,0.002]
[1767785222927,0.92872143,3225.4,3224.4,0.002]
[1767785223244,0.49064313,3226.3,3224.4,0.84301352]
[1767785223444,0.92872143,3226.2,3224.5,0.3839614]
[1767785223631,4.90643128,3226.2,3224.5,0.3839614]
[1767785223839,0.92872143,3225.8,3224.5,0.812]
[1767785224034,0.92872143,3225.8,3224.0,4.03238776]
[1767785224218,0.92872143,3225.8,3224.1,3.91460821]
[1767785224418,0.92872143,3225.6,3224.2,0.39456256]
[1767785224841,0.92872143,3225.6,3224.1,0.813]
[1767785225220,0.92872143,3225.5,3223.9,3.10181453]
[1767785225447,0.92872143,3225.5,3224.0,0.813]
[1767785225951,0.92872143,3225.3,3224.0,0.813]
[1767785227255,0.92872143,3225.3,3224.0,3.9147199]
[1767785227425,0.92872143,3225.1,3224.5,0.002]
[1767785227948,1.02284517,3225.7,3224.5,0.002]
[1767785228150,0.92872143,3225.5,3224.5,0.002]
[1767785228385,0.92872143,3225.5,3224.5,0.03301256]
[1767785228827,0.16177384,3226.2,3224.6,0.813]
[1767785228828,0.92872143,3226.1,3224.6,0.813]
[1767785229029,0.92872143,3226.0,3224.7,0.03101063]
[1767785230026,0.92872143,3225.8,3224.8,3.1009675]
[1767785230226,0.92872143,3225.8,3224.9,0.6233031]
[1767785230539,0.92872143,3226.0,3225.0,0.03100775]
[1767785231346,0.92872143,3225.9,3224.9,0.6233031]
[1767785232023,0.92872143,3226.4,3225.0,0.03100775]
[1767785233156,4.02834327,3226.2,3225.1,3.10067904]
[1767785233342,4.02834327,3226.2,3225.2,0.62324537]
[1767785233343,0.92872143,3226.1,3225.2,0.62324537]
[1767785234068,3.0994297,3226.4,3225.3,0.03100486]
[1767785234069,0.92872143,3226.4,3225.3,0.03100486]
[1767785234271,3.09933195,3226.6,3225.3,0.03100486]
[1767785234272,0.92872143,3226.6,3225.3,0.03100486]
[1767785234474,3.09907578,3226.8,3225.3,0.03100486]
[1767785235041,0.92872143,3226.9,3225.3,0.03100486]
[1767785235229,4.0277096,3226.9,3225.4,6.20078128]
[1767785235560,4.0277096,3226.9,3225.5,0.65418155]
[1767785235893,0.92872143,3226.8,3225.5,0.65418155]
[1767785236957,4.02766048,3227.0,3225.5,4.6318914]
[1767785237257,4.02766048,3227.0,3225.6,6.20039682]
[1767785238733,4.02766048,3227.0,3225.8,6.2000124]
[1767785238954,4.02766048,3227.0,3225.9,1.43610134]
[1767785239330,0.001,3226.5,3225.9,1.43610134]
[1767785240271,0.001,3226.5,3225.9,1.46710044]
[1767785240774,0.001,3226.5,3226.0,3.09981401]
[1767785241564,0.001,3227.2,3226.0,6.19962802]
[1767785241875,0.001,3227.2,3226.1,0.48768862]
[1767785242075,0.92872143,3227.1,3226.1,0.48768862]
[1767785242279,0.92872143,3227.1,3226.1,0.45669145]
[1767785242441,0.92872143,3227.1,3226.0,3.91281401]
[1767785242646,0.92872143,3227.1,3226.0,0.813]
[1767785242846,0.92872143,3226.9,3225.8,3.13098171]
[1767785243269,0.92872143,3226.9,3225.8,0.03100006]
[1767785243445,0.92872143,3226.9,3225.7,0.84400102]
[1767785243649,0.92872143,3226.7,3225.9,3.09989946]
[1767785243954,0.92872143,3226.7,3225.8,3.09999182]
[1767785244355,0.92872143,3226.7,3225.7,4.43152748]
[1767785244570,0.92872143,3226.7,3225.7,3.58752646]
[1767785244874,0.92872143,3226.7,3225.8,0.813]
[1767785245058,0.92872143,3226.5,3225.8,0.813]
[1767785245879,0.92872143,3226.5,3225.5,3.13128045]
[1767785246072,0.92872143,3226.5,3225.8,3.09999287]
[1767785246375,0.92872143,3226.5,3225.6,0.813]
[1767785246574,3.09923758,3226.6,3225.6,0.813]
[1767785246575,0.92872143,3226.3,3225.6,0.84400198]
[1767785246768,0.92872143,3226.3,3225.4,0.813]
[1767785247089,0.92872143,3226.3,3225.5,0.03100294]
[1767785247287,0.92872143,3226.5,3225.5,0.03100294]
[1767785247856,4.02779705,3226.8,3225.5,0.03100294]
[1767785248051,1.72258806,3226.8,3225.7,3.97733954]
[1767785248268,4.02754509,3227.1,3225.8,0.03100006]
[1767785248482,4.02754509,3227.1,3225.9,0.813]
[1767785248692,4.02754509,3227.1,3226.0,0.03099814]
[1767785249076,4.02754509,3227.1,3226.1,3.09971792]
[1767785249394,0.71272126,3227.0,3226.1,3.09971792]
[1767785249579,1.64144269,3227.0,3226.1,3.09971792]
[1767785249780,0.92872143,3226.9,3226.1,3.09971792]
[1767785250858,0.92872143,3226.9,3226.0,3.09977483]
[1767785251552,0.95043721,3226.8,3226.0,3.09977483]
[1767785251786,1.42665074,3226.8,3226.0,3.09977483]
[1767785252083,0.95043721,3226.7,3225.9,0.0309991]
[1767785252291,0.95043721,3226.7,3226.0,0.813]
[1767785254879,4.04959215,3226.7,3226.0,0.813]
[1767785255651,0.95043721,3226.6,3225.8,3.1329799]
[1767785255887,0.95043721,3226.5,3225.9,0.813]
[1767785257351,3.09918368,3226.7,3225.9,0.813]
[1767785257558,4.52572126,3226.8,3225.9,0.813]
[1767785257958,4.52572126,3226.8,3225.9,3.91284325]
[1767785259266,0.95043721,3226.7,3225.9,3.91284325]
[1767785260289,4.81208061,3226.7,3225.9,3.91284325]
[1767785260790,0.95043721,3226.6,3225.8,0.002]
[1767785260959,0.95043721,3226.6,3225.8,0.815]
[1767785261779,0.95043721,3226.6,3225.8,0.002]
[1767785261970,6.96081906,3226.7,3225.8,0.002]
[1767785261971,0.95043721,3226.4,3225.8,0.002]
[1767785262273,0.95043721,3226.2,3225.8,0.002]
[1767785263671,0.95043721,3226.2,3225.5,0.002]
[1767785264475,0.95043721,3226.0,3225.5,0.002]
[1767785264697,0.95043721,3225.8,3225.5,0.002]
[1767785264871,0.95043721,3225.8,3224.9,3.10085022]
[1767785265203,0.95043721,3225.8,3224.9,0.813]
[1767785265675,0.95043721,3225.8,3224.9,3.91386673]
[1767785266791,0.95043721,3225.8,3225.0,3.10073432]
[1767785267004,0.95043721,3225.8,3225.1,0.03100679]
[1767785267292,0.95043721,3225.8,3225.0,3.10073432]
[1767785267497,0.95043721,3225.8,3225.0,3.80219479]
[1767785269406,0.95043721,3225.7,3225.0,0.70146047]
[1767785269600,0.95043721,3225.7,3225.0,3.80222438]
[1767785271300,0.5,3225.9,3225.0,6.90299957]
[1767785271500,0.5,3225.9,3225.1,0.03100679]
[1767785271719,0.5,3225.9,3225.2,0.69340064]
[1767785271891,0.5,3225.9,3225.3,0.03100486]
[1767785272096,0.5,3225.9,3225.2,0.72440646]
[1767785272498,4e-08,3225.9,3225.2,0.72440646]
[1767785272813,0.95043721,3226.3,3225.2,4.701746]
[1767785273013,0.95043721,3226.3,3225.9,0.01915708]
[1767785273517,0.95043721,3226.3,3225.6,0.813]
[1767785273690,0.95043721,3226.2,3225.6,0.813]
[1767785273885,4.04990863,3226.4,3225.6,3.91318987]
[1767785274105,0.95043721,3226.4,3225.6,3.91318987]
[1767785274300,0.95043721,3226.4,3225.6,1.51627183]
[1767785274301,4.04989623,3226.4,3225.6,1.51627183]
[1767785274702,0.95043721,3226.3,3225.6,1.51627183]
[1767785275912,0.95043721,3226.2,3225.6,1.51627183]
[1767785276108,0.001,3226.0,3225.6,1.51627183]
[1767785276309,0.001,3226.0,3225.7,0.03100102]
[1767785276507,0.001,3226.0,3225.7,0.4647461]
[1767785276819,0.001,3226.0,3225.8,0.03100006]
[1767785277123,0.001,3226.0,3225.7,0.4647461]
[1767785278434,0.95143721,3226.0,3225.5,0.813]
[1767785278732,0.95143721,3226.0,3225.3,0.002]
[1767785280120,0.98671288,3225.9,3225.3,0.002]
[1767785283195,0.99650123,3225.8,3225.3,0.002]
[1767785284113,0.5,3225.5,3225.3,0.002]
[1767785284439,1.49650123,3225.5,3225.3,0.002]
[1767785286135,0.99650123,3225.4,3225.3,0.002]
[1767785286506,0.99650123,3225.9,3225.3,0.002]
[1767785287322,0.001,3226.0,3225.3,0.002]